Cogmind - Beta 14 @@@ ROGUE MODE // 2024.11.18 @ 18:23:58 Player: Zeldest Result: Destroyed by G-73 Enforcer with Phase Gun Performance ------------- Evolutions (8) 4000 Regions Visited (15) 3000 Robots Destroyed (24) 120 Value Destroyed (992) 992 Prototype IDs (2) 40 Alien Tech Used (0) 0 Bonus (1283) 1283 TOTAL SCORE: 9435 Bonus ------- High Alert Combat Kills 20 Follower Combat Kills 463 Entered DSFs 500 Acquired ECA 300 Cogmind --------- Core Integrity 0/1450 Matter 175/300 Energy 100/100 System Corruption 0% Temperature Cool (0) Movement Core (50) Location -2/Research Parts ------- > --- POWER (3) -------- (None) > --- PROPULSION (15) -- (None) > --- UTILITY (3) ------ Improved Signal Interpreter > --- WEAPON (2) ------- (None) > --- INVENTORY (5) ---- Light Antimatter Reactor Advanced Heat Sink Enhanced Nova Cannon Peak State ------------ > --- POWER ------------ Light Particle Reactor Micro Antimatter Reactor > --- PROPULSION ------- Field Propulsion Drive Nuclear Pulse Array Nuclear Pulse Array Nuclear Pulse Array Nuclear Pulse Array Nuclear Pulse Array Field Propulsion Array > --- UTILITY ---------- Advanced Heat Sink Improved Signal Interpreter Advanced Transmission Jammer > --- WEAPON ----------- Improved Remote Datajack > --- INVENTORY -------- Neutrino Core Neutrino Core Micro Fission Core Advanced Heat Sink Heavy Machine Gun [Rating: 119] Favorites ----------- Power Neutrino Core Engine Improved Deuterium Engine Power Core Neutrino Core Reactor Quantum Reactor Propulsion Nuclear Pulse Array Treads Medium Treads Flight Unit Nuclear Pulse Array Utility Advanced Transmission Jammer Device Advanced Transmission Jammer Processor Improved Signal Interpreter Protection Reflective Plating Weapon Improved Remote Datajack Energy Gun Improved EM Shotgun Energy Cannon Enhanced Nova Cannon Ballistic Gun Light Assault Rifle Special Weapon Improved Remote Datajack Slashing Weapon Power Sword Build | -11 -10 -10 -9 -9 -8 -7 -7 -6 -6 -6 -5 -4 -4 -3 -2 ------- Run | Yrd Mat Min Mat Min Mat Fac DSF Fac Low Low Fac Fac Ext Res Res Slots Evolved 16 | . . . 2 . 2 2 . 2 . . 2 2 . 2 2 Power 2 | . . . . . . 1 . . . . . . . . 1 Propulsion 13 | . . . 2 . 2 1 . 2 . . 2 2 . 1 1 Utility 1 | . . . . . . . . . . . . . . 1 . Weapon . | . . . . . . . . . . . . . . . . Parts Attached 112 | 3 10 2 10 . 6 3 29 1 2 . 9 13 3 7 14 Power 30 | 1 2 . 1 . 1 3 4 . . . 1 3 2 5 7 Engine 9 | 1 1 . 1 . 1 3 2 . . . . . . . . Core 13 | . 1 . . . . . 2 . . . 1 3 2 3 1 Reactor 8 | . . . . . . . . . . . . . . 2 6 Propulsion 52 | . 3 2 6 . 4 . 17 1 . . 6 7 . 1 5 Treads 17 | . . . . . . . 17 . . . . . . . . Leg . | . . . . . . . . . . . . . . . . Wheel . | . . . . . . . . . . . . . . . . Hover . | . . . . . . . . . . . . . . . . Flight 35 | . 3 2 6 . 4 . . 1 . . 6 7 . 1 5 Utility 13 | . 2 . . . 1 . 4 . 1 . 1 2 1 1 . Device 11 | . 2 . . . 1 . 3 . 1 . 1 2 1 . . Storage . | . . . . . . . . . . . . . . . . Processor 1 | . . . . . . . . . . . . . . 1 . Hackware . | . . . . . . . . . . . . . . . . Protection 1 | . . . . . . . 1 . . . . . . . . Artifact . | . . . . . . . . . . . . . . . . Weapon 17 | 2 3 . 3 . . . 4 . 1 . 1 1 . . 2 Energy Gun 2 | . . . 2 . . . . . . . . . . . . Energy Cannon 5 | . . . . . . . 2 . . . 1 . . . 2 Ballistic Gun 7 | 2 3 . . . . . 2 . . . . . . . . Ballistic Cannon . | . . . . . . . . . . . . . . . . Launcher . | . . . . . . . . . . . . . . . . Special Weapon 2 | . . . 1 . . . . . . . . 1 . . . Impact Weapon . | . . . . . . . . . . . . . . . . Slashing Weapon 1 | . . . . . . . . . 1 . . . . . . Piercing Weapon . | . . . . . . . . . . . . . . . . Special Melee Weapon . | . . . . . . . . . . . . . . . . Unidentified Prototypes 2 | . . . 1 . . . 1 . . . . . . . . Parts Lost 56 | . 2 4 1 . 10 . 13 . 1 . 8 . . 4 13 Power 9 | . 1 1 . . . . 4 . . . . . . . 3 Propulsion 35 | . 1 2 . . 8 . 5 . 1 . 6 . . 3 9 Utility 5 | . . . . . 1 . 2 . . . 1 . . . 1 Weapon 7 | . . 1 1 . 1 . 2 . . . 1 . . 1 . Highest Loss Streak 10 | . 1 4 1 . 8 . 10 . 1 . 4 . . 3 6 To Critical Strikes 1 | . . . . . . . 1 . . . . . . . . Average Slot Usage (%) 45 | . 50 71 60 77 64 1 62 5 13 13 14 36 63 60 22 Engine 1 | . 6 . . 11 7 1 2 . . . . . . . . Core 3 | . 7 14 . . . . 2 . . . 1 8 10 7 . Treads 4 | . . . . . . . 40 . . . . . . . . Flight 20 | . 7 28 44 44 41 . . 5 5 . 7 20 36 32 7 Device 6 | . 1 14 11 11 8 . 5 . 5 6 4 5 10 9 4 Ballistic Gun 3 | . 28 14 . . . . 7 . . . . . . . . Special Weapon 1 | . . . 2 . . . . . . . . 1 5 3 . Peak Build Rating 119 | 3 11 10 19 19 25 8 51 5 15 10 25 100 105 119 114 Average Rating 36 | 2 4 8 15 19 18 1 31 4 10 10 10 54 103 112 42 On Entrance 24 | . 3 10 6 19 19 1 1 . 5 10 10 1 100 105 95 Naked Turns 197 | . . . . . 11 50 54 23 . . 50 9 . . . Heaviest Build 68 | 6 8 8 9 9 14 . 35 . 3 3 9 22 31 34 68 Greatest Support 178 | 3 8 8 20 20 28 3 178 6 6 3 23 81 81 87 67 Greatest Overweight (x) 22 | 1 2 . . . 1 . . . . . 2 . . . 22 Average Overweight (x) . | . . . . . . . . . . . . . . . . Largest Inventory Capacity 5 | 5 5 5 5 5 5 5 5 5 5 5 5 5 5 5 5 Average Capacity 5 | 5 5 5 5 5 5 5 5 5 5 5 5 5 5 5 5 Most Carried 5 | . 5 5 5 5 5 5 5 3 4 3 5 5 5 5 5 Average Carried 3 | . 1 4 4 5 3 3 3 2 3 3 4 4 4 3 3 Final Capacity 5 | 5 5 5 5 5 5 5 5 5 5 5 5 5 5 5 5 Final Carried 5 | . 5 3 5 5 4 3 1 3 3 3 5 4 5 4 3 Class Distribution -------------------- 48% | Mutant 44% | Sprinter 4% | Infiltrator-Sprinter Dominant Class ---------------- Mutant | -10/Materials Mutant | -10/Mines Sprinter | -9/Materials Sprinter | -9/Mines Sprinter | -8/Materials Mutant | -7/Factory Mutant | -7/DSF Mutant | -6/Factory Mutant | -6/Lower Caves Mutant | -6/Lower Caves Mutant | -5/Factory Sprinter | -4/Factory Sprinter | -4/Extension Sprinter | -3/Research Mutant | -2/Research Resources | -11 -10 -10 -9 -9 -8 -7 -7 -6 -6 -6 -5 -4 -4 -3 -2 ----------- Run | Yrd Mat Min Mat Min Mat Fac DSF Fac Low Low Fac Fac Ext Res Res Matter Collected 1149 | 160 230 39 100 5 10 . 360 . 20 . 65 . 160 . . Remotely . | . . . . . . . . . . . . . . . . Salvage Created 1032 | . 267 . 85 . 14 . 441 . 63 . 54 . . . 108 Parts 61 | . 17 . 7 . 3 . 19 . 4 . 4 . . . 7 Haulers Intercepted 1 | . . . 1 . . . . . . . . . . . . Recyclers Shooed . | . . . . . . . . . . . . . . . . Parts Field Recycled . | . . . . . . . . . . . . . . . . Retrieved Matter . | . . . . . . . . . . . . . . . . Parts Self-Destructed 5 | . . . . . . . . . . 5 . . . . . Prevented . | . . . . . . . . . . . . . . . . Kills | -11 -10 -10 -9 -9 -8 -7 -7 -6 -6 -6 -5 -4 -4 -3 -2 ------- Run | Yrd Mat Min Mat Min Mat Fac DSF Fac Low Low Fac Fac Ext Res Res Combat Hostiles Destroyed 23 | . 6 . 2 . 1 . 8 . 1 . 2 . . . 3 Melee 5 | . . . . . . . 4 . 1 . . . . . . Guns 9 | . 6 . 1 . . . 2 . . . . . . . . Cannons 8 | . . . 1 . . . 2 . . . 2 . . . 3 AOE 1 | . . . . . 1 . . . . . . . . . . Classes Destroyed 6 | . 1 . 2 . . . 2 . 1 . . . . . . Hauler 1 | . . . 1 . . . . . . . . . . . . Swarmer 8 | . . . 2 . 1 . . . . . 2 . . . 3 Grunt 8 | . 6 . . . . . 2 . . . . . . . . Specialist 5 | . . . . . . . 5 . . . . . . . . Hunter 1 | . . . . . . . 1 . . . . . . . . Mutant 1 | . . . . . . . . . 1 . . . . . . Best Kill Streak 3 | . 1 . 1 . 1 . 2 . 1 . 2 . . . 3 Combat Bots Only 3 | . 1 . 1 . 1 . 2 . 1 . 2 . . . 3 Max Kills in Single Turn 1 | . 1 . 1 . 1 . 1 . 1 . 1 . . . 1 Gunslinging . | . . . . . . . . . . . . . . . . Exploded 1 | . . . . . 1 . . . . . . . . . . Melee 1 | . . . . . . . 1 . 1 . . . . . . Uniques/NPCs Destroyed . | . . . . . . . . . . . . . . . . Combat | -11 -10 -10 -9 -9 -8 -7 -7 -6 -6 -6 -5 -4 -4 -3 -2 -------- Run | Yrd Mat Min Mat Min Mat Fac DSF Fac Low Low Fac Fac Ext Res Res Hostile Shots Fired 786 | . 49 5 26 2 34 . 259 31 29 . 90 . 20 52 189 Missed 315 | . 14 1 10 1 15 . 89 23 10 . 40 . 12 28 72 Damage Taken 9334 | . 470 175 265 12 363 . 3210 86 205 . 1291 . 305 537 2415 Core 3653 | . 161 58 165 . 126 . 492 75 136 . 923 . 23 38 1456 Absorbed by Shields . | . . . . . . . . . . . . . . . . Core Remaining (%) 61 | 100 . 12 . 58 77 . 29 . . 75 7 . 98 97 . Volleys Fired 95 | . 36 . 19 . 3 . 25 . . . 5 . . . 7 Largest 2 | . 2 . 1 . 1 . 2 . . . 1 . . . 1 Hottest 120 | . 40 . 45 . 45 . 63 . . . 98 . . . 120 Shots Fired 144 | . 72 . 19 . 3 . 38 . . . 5 . . . 7 Gun 110 | . 72 . 7 . 3 . 28 . . . . . . . . Cannon 22 | . . . . . . . 10 . . . 5 . . . 7 Launcher . | . . . . . . . . . . . . . . . . Special 12 | . . . 12 . . . . . . . . . . . . Kinetic 100 | . 72 . . . . . 28 . . . . . . . . Thermal 30 | . . . 18 . . . . . . . 5 . . . 7 Explosive . | . . . . . . . . . . . . . . . . Electromagnetic 14 | . . . 1 . 3 . 10 . . . . . . . . Robot Hit Streak 11 | . 11 . 3 . 2 . 10 . . . 2 . . . 4 Robot Miss Streak 4 | . 4 . 3 . 4 . 2 . . . 2 . . . 3 Penetration Max . | . . . . . . . . . . . . . . . . Secondary Targets 1 | . . . . . . . 1 . . . . . . . . Max Gunslinging Chain 1 | . . . . . . . 1 . . . . . . . . Shots Hit Robots 98 | . 43 . 10 . 1 . 30 . 7 . 3 . . . 4 Core Hits 40 | . 18 . 4 . 1 . 10 . 2 . 2 . . . 3 Critical Kills . | . . . . . . . . . . . . . . . . Critical Parts Destroyed 1 | . . . . . . . 1 . . . . . . . . Critical Strikes 2 | . . . . . . . 1 . 1 . . . . . . Destroy 1 | . . . . . . . 1 . . . . . . . . Sever 1 | . . . . . . . . . 1 . . . . . . Melee Attacks 8 | . . . . . . . . . 8 . . . . . . Impact . | . . . . . . . . . . . . . . . . Slashing 8 | . . . . . . . . . 8 . . . . . . Piercing . | . . . . . . . . . . . . . . . . Sneak Attacks . | . . . . . . . . . . . . . . . . Combat Hostiles . | . . . . . . . . . . . . . . . . Follow-up Attacks . | . . . . . . . . . . . . . . . . Damage Inflicted 1856 | . 405 . 112 . 47 . 658 . 289 . 133 . . . 212 Guns 896 | . 404 . 56 . 20 . 416 . . . . . . . . Cannons 556 | . . . . . . . 211 . . . 133 . . . 212 Explosions 27 | . . . . . 27 . . . . . . . . . . Melee 289 | . . . . . . . . . 289 . . . . . . Ramming 32 | . 1 . . . . . 31 . . . . . . . . Kinetic 820 | . 404 . . . . . 416 . . . . . . . . Thermal 474 | . . . 102 . 27 . . . . . 133 . . . 212 Explosive . | . . . . . . . . . . . . . . . . Electromagnetic 241 | . . . 10 . 20 . 211 . . . . . . . . Impact . | . . . . . . . . . . . . . . . . Slashing 289 | . . . . . . . . . 289 . . . . . . Piercing . | . . . . . . . . . . . . . . . . Highest Corruption 1 | . . . . . 1 . . . 1 1 1 . . . . Average Corruption 1 | . . . . . 1 . . . 1 1 1 . . . . Corruption Purged . | . . . . . . . . . . . . . . . . Corruption Blocked . | . . . . . . . . . . . . . . . . Overload Shots . | . . . . . . . . . . . . . . . . Overflow Damage 55 | . . . . . 24 . . . 5 . . . . . 26 Projectiles 26 | . . . . . . . . . . . . . . . 26 Explosions 24 | . . . . . 24 . . . . . . . . . . Melee 5 | . . . . . . . . . 5 . . . . . . Knockbacks . | . . . . . . . . . . . . . . . . Impact . | . . . . . . . . . . . . . . . . Kinetic . | . . . . . . . . . . . . . . . . Secondary . | . . . . . . . . . . . . . . . . Self-Inflicted Damage 31 | . . . . . 31 . . . . . . . . . . Shots 1 | . . . . . 1 . . . . . . . . . . Rammed 15 | . 1 . . . . . 14 . . . . . . . . Targets Rammed 19 | . 1 . . . . . 18 . . . . . . . . Kicked . | . . . . . . . . . . . . . . . . Crushed 4 | . . . . . . . 4 . . . . . . . . Highest Temperature 240 | . 45 . . . . . . . . . 72 147 112 59 240 Average Temperature 28 | . 17 . . . . . . . . . 32 74 18 10 103 Received Heat Transfer 1112 | . 285 . 54 6 45 . 225 33 9 . 132 . 45 179 99 Siege Activations . | . . . . . . . . . . . . . . . . Robots Corrupted . | . . . . . . . . . . . . . . . . Combat Hostiles . | . . . . . . . . . . . . . . . . Parts Fried . | . . . . . . . . . . . . . . . . Impact Corruptions . | . . . . . . . . . . . . . . . . Robots Melted . | . . . . . . . . . . . . . . . . Combat Hostiles . | . . . . . . . . . . . . . . . . Parts Melted . | . . . . . . . . . . . . . . . . Heat Transferred 670 | . . . 285 . . . . . . . 200 . . . 185 Parts Sabotaged . | . . . . . . . . . . . . . . . . Parts Stolen . | . . . . . . . . . . . . . . . . Parts Stripped . | . . . . . . . . . . . . . . . . Power Chain Reactions 1 | . . . . . 1 . . . . . . . . . . Alert | -11 -10 -10 -9 -9 -8 -7 -7 -6 -6 -6 -5 -4 -4 -3 -2 ------- Run | Yrd Mat Min Mat Min Mat Fac DSF Fac Low Low Fac Fac Ext Res Res Peak Influence 496 | . 175 67 142 55 205 93 193 155 . . 384 217 489 471 496 Initial 256 | . . 67 . 55 21 93 68 95 . . 74 187 105 256 180 Average 159 | . 82 32 35 55 94 93 146 117 . . 183 195 276 341 282 Maximum Alert Level 2 | . . . . . 1 . . . . . 1 1 2 2 2 Low Security (%) 72 | 100 100 100 100 100 96 100 100 100 . . 64 46 34 . 48 Level 1 20 | . . . . . 3 . . . . . 35 53 43 78 21 Level 2 7 | . . . . . . . . . . . . . 22 21 29 Level 3 . | . . . . . . . . . . . . . . . . Level 4 . | . . . . . . . . . . . . . . . . Level 5 . | . . . . . . . . . . . . . . . . High Security . | . . . . . . . . . . . . . . . . Max Security . | . . . . . . . . . . . . . . . . Sterilizations 1 | . . . . . . . 1 . . . . . . . . Squads Dispatched 13 | . . . . . . . 3 1 . . 2 1 2 1 3 Investigation 3 | . . . . . . . . 1 . . . . 1 . 1 Extermination 1 | . . . . . . . . . . . 1 . . . . Reinforcement 9 | . . . . . . . 3 . . . 1 1 1 1 2 Assault . | . . . . . . . . . . . . . . . . Garrison . | . . . . . . . . . . . . . . . . Intercept . | . . . . . . . . . . . . . . . . Searches Triggered 3 | . . . . . . . . . . . . . 1 1 1 Construction Impeded . | . . . . . . . . . . . . . . . . Haulers Reinforced . | . . . . . . . . . . . . . . . . Active Scanning Responses . | . . . . . . . . . . . . . . . . Cargo Convoy Interrupts . | . . . . . . . . . . . . . . . . Stealth | -11 -10 -10 -9 -9 -8 -7 -7 -6 -6 -6 -5 -4 -4 -3 -2 --------- Run | Yrd Mat Min Mat Min Mat Fac DSF Fac Low Low Fac Fac Ext Res Res Distress Signals 9 | . 1 . 3 . . . . . . . 3 . 1 1 . Communications Jammed 40 | . . . . . . . . . . . . . 12 25 3 Distress Signals 40 | . . . . . . . . . . . . . 12 25 3 Times Spotted 177 | . 10 2 17 4 18 . 13 3 8 . 32 . 15 22 33 Peak Tracking Total 16 | . 2 2 9 4 11 . 4 3 4 . 16 . 4 13 12 Tactical Retreats 33 | . . . 4 . 4 . 2 1 1 . 7 . 2 6 6 Traps | -11 -10 -10 -9 -9 -8 -7 -7 -6 -6 -6 -5 -4 -4 -3 -2 ------- Run | Yrd Mat Min Mat Min Mat Fac DSF Fac Low Low Fac Fac Ext Res Res Traps Triggered 9 | . 1 . . . 1 . 1 . . . 2 . 3 . 1 Indirectly . | . . . . . . . . . . . . . . . . Trap Hack Attempts . | . . . . . . . . . . . . . . . . Triggered . | . . . . . . . . . . . . . . . . Disarmed . | . . . . . . . . . . . . . . . . Reprogrammed . | . . . . . . . . . . . . . . . . Reused . | . . . . . . . . . . . . . . . . Traps Extracted . | . . . . . . . . . . . . . . . . Installed . | . . . . . . . . . . . . . . . . Triggered . | . . . . . . . . . . . . . . . . Machines | -11 -10 -10 -9 -9 -8 -7 -7 -6 -6 -6 -5 -4 -4 -3 -2 ---------- Run | Yrd Mat Min Mat Min Mat Fac DSF Fac Low Low Fac Fac Ext Res Res Machines Disabled 2 | . . . . . . . 1 . 1 . . . . . . Max in Single Turn 1 | . . . . . . . 1 . 1 . . . . . . Machines Repaired . | . . . . . . . . . . . . . . . . Machines Dismantled . | . . . . . . . . . . . . . . . . Machines Sabotaged . | . . . . . . . . . . . . . . . . Overloaded Fab Kills . | . . . . . . . . . . . . . . . . Hacking | -11 -10 -10 -9 -9 -8 -7 -7 -6 -6 -6 -5 -4 -4 -3 -2 --------- Run | Yrd Mat Min Mat Min Mat Fac DSF Fac Low Low Fac Fac Ext Res Res Machines Accessed 14 | . . . 1 . 1 1 . 2 . . 1 . 6 . 2 Terminals 14 | . . . 1 . 1 1 . 2 . . 1 . 6 . 2 Fabricators . | . . . . . . . . . . . . . . . . Repair Stations . | . . . . . . . . . . . . . . . . Recycling Units . | . . . . . . . . . . . . . . . . Scanalyzers . | . . . . . . . . . . . . . . . . Garrison Access . | . . . . . . . . . . . . . . . . Total Hacks 30 | . . . 5 . 1 1 . 6 . . 1 . 10 . 6 Successful 14 | . . . 3 . 1 1 . 1 . . . . 6 . 2 Failed 16 | . . . 2 . . . . 5 . . 1 . 4 . 4 Catastrophic 4 | . . . . . . . . 2 . . . . 1 . 1 Database Lockouts . | . . . . . . . . . . . . . . . . Manual 4 | . . . 3 . 1 . . . . . . . . . . Terminals 30 | . . . 5 . 1 1 . 6 . . 1 . 10 . 6 Fabricators . | . . . . . . . . . . . . . . . . Repair Stations . | . . . . . . . . . . . . . . . . Recycling Units . | . . . . . . . . . . . . . . . . Scanalyzers . | . . . . . . . . . . . . . . . . Garrison Access . | . . . . . . . . . . . . . . . . Terminal Hacks 10 | . . . . . . 1 . 1 . . . . 6 . 2 Open Door 6 | . . . . . . . . . . . . . 6 . . Open DSF 3 | . . . . . . 1 . 1 . . . . . . 1 Branch Access Points 1 | . . . . . . . . . . . . . . . 1 Fabricator Hacks . | . . . . . . . . . . . . . . . . Repair Station Hacks . | . . . . . . . . . . . . . . . . Recycling Unit Hacks . | . . . . . . . . . . . . . . . . Scanalyzer . | . . . . . . . . . . . . . . . . Garrison Access Hacks . | . . . . . . . . . . . . . . . . Unauthorized Hacks 4 | . . . 3 . 1 . . . . . . . . . . Terminals 4 | . . . 3 . 1 . . . . . . . . . . Assimilate 2 | . . . 1 . 1 . . . . . . . . . . Botnet 1 | . . . 1 . . . . . . . . . . . . Operators 1 | . . . 1 . . . . . . . . . . . . Fabricators . | . . . . . . . . . . . . . . . . Repair Stations . | . . . . . . . . . . . . . . . . Recycling Units . | . . . . . . . . . . . . . . . . Scanalyzers . | . . . . . . . . . . . . . . . . Garrison Access . | . . . . . . . . . . . . . . . . Data Cores Recovered . | . . . . . . . . . . . . . . . . Used . | . . . . . . . . . . . . . . . . Hacking Detections 10 | . . . 1 . . 1 . 2 . . 1 . 3 . 2 Full Trace Events 3 | . . . . . . . . 1 . . . . 1 . 1 Feedback Events . | . . . . . . . . . . . . . . . . Feedback Blocked . | . . . . . . . . . . . . . . . . Robot Schematics Acquired . | . . . . . . . . . . . . . . . . Robots Built . | . . . . . . . . . . . . . . . . Authchips . | . . . . . . . . . . . . . . . . Time . | . . . . . . . . . . . . . . . . Total Robot Build Rating . | . . . . . . . . . . . . . . . . Part Schematics Acquired . | . . . . . . . . . . . . . . . . Parts Built . | . . . . . . . . . . . . . . . . Authchips . | . . . . . . . . . . . . . . . . Time . | . . . . . . . . . . . . . . . . Total Part Build Rating . | . . . . . . . . . . . . . . . . Parts Repaired . | . . . . . . . . . . . . . . . . Time . | . . . . . . . . . . . . . . . . Parts Recycled . | . . . . . . . . . . . . . . . . Recycled Matter . | . . . . . . . . . . . . . . . . Retrieved Matter . | . . . . . . . . . . . . . . . . Retrieved Components . | . . . . . . . . . . . . . . . . Parts Scanalyzed . | . . . . . . . . . . . . . . . . Part Schematics Acquired . | . . . . . . . . . . . . . . . . Parts Damaged . | . . . . . . . . . . . . . . . . Bothacking | -11 -10 -10 -9 -9 -8 -7 -7 -6 -6 -6 -5 -4 -4 -3 -2 ------------ Run | Yrd Mat Min Mat Min Mat Fac DSF Fac Low Low Fac Fac Ext Res Res Used RIF Installer . | . . . . . . . . . . . . . . . . Robots Hacked . | . . . . . . . . . . . . . . . . Non-combat . | . . . . . . . . . . . . . . . . Combat . | . . . . . . . . . . . . . . . . Robot Hacks Applied . | . . . . . . . . . . . . . . . . Relay Couplers Released . | . . . . . . . . . . . . . . . . Fabnet Peak Effective % . | . . . . . . . . . . . . . . . . Robots Rewired 3 | . . . . . . . . . 3 . . . . . . Allies Hacked . | . . . . . . . . . . . . . . . . Hacks Repelled . | . . . . . . . . . . . . . . . . Allies | -11 -10 -10 -9 -9 -8 -7 -7 -6 -6 -6 -5 -4 -4 -3 -2 -------- Run | Yrd Mat Min Mat Min Mat Fac DSF Fac Low Low Fac Fac Ext Res Res Total Allies 15 | . . 3 1 . 1 . . . 3 . . . 7 . . Largest Group 6 | . . 3 1 . 1 . . . 3 3 3 . 6 . . Highest-Rated Group 370 | . . 40 10 . 10 . . . 93 93 93 . 370 . . Highest-Rated Ally 159 | . . 16 10 . 10 . . . 31 31 31 . 159 . . Warlord Squad Rendezvous 2 | . . . . . . . . . . . 2 . . . . Dakka 2 | . . . . . . . . . . . 2 . . . . Total Orders . | . . . . . . . . . . . . . . . . Ally Attacks 77 | . . 1 . . . . . . 1 . 23 . 52 . . Total Damage 2219 | . . . . . . . . . 20 . 420 . 1779 . . Kills 13 | . . . . . . . . . . . 2 . 11 . . Allies Corrupted . | . . . . . . . . . . . . . . . . Allies Melted . | . . . . . . . . . . . . . . . . Intel | -11 -10 -10 -9 -9 -8 -7 -7 -6 -6 -6 -5 -4 -4 -3 -2 ------- Run | Yrd Mat Min Mat Min Mat Fac DSF Fac Low Low Fac Fac Ext Res Res Robot Analysis Total . | . . . . . . . . . . . . . . . . Derelict Logs Recovered 3 | . . . . 1 . . . . 2 . . . . . . Drone Launches 2 | . . . . . . . . . . . 2 . . . . Drone Recoveries . | . . . . . . . . . . . . . . . . Exploration | -11 -10 -10 -9 -9 -8 -7 -7 -6 -6 -6 -5 -4 -4 -3 -2 ------------- Run | Yrd Mat Min Mat Min Mat Fac DSF Fac Low Low Fac Fac Ext Res Res Turns Passed 3362 | 24 328 14 656 17 149 54 372 119 245 41 262 173 358 285 265 Spaces Moved 5165 | 23 242 33 383 65 338 95 197 270 487 71 533 420 813 659 536 Core 809 | 23 105 . . . 22 95 101 44 31 71 187 15 . . 115 Treads 96 | . . . . . . . 96 . . . . . . . . Legs . | . . . . . . . . . . . . . . . . Wheels . | . . . . . . . . . . . . . . . . Hover . | . . . . . . . . . . . . . . . . Flight 4260 | . 137 33 383 65 316 . . 226 456 . 346 405 813 659 421 Fastest Speed 21 | 50 37 37 26 26 21 50 50 40 40 50 23 23 23 22 28 Average Speed 36 | 89 73 37 26 26 27 50 104 41 40 50 37 33 23 22 39 Slowest Speed 1150 | 100 150 37 31 26 117 50 165 50 50 50 195 50 30 28 1150 Overloaded Moves . | . . . . . . . . . . . . . . . . Propulsion Burnouts . | . . . . . . . . . . . . . . . . Robots Hopped 115 | . . 1 10 1 8 . . 5 . . 13 . 25 25 27 Cave-ins Triggered . | . . . . . . . . . . . . . . . . Exploration Rate (%) 28 | 3 38 8 21 29 30 3 94 8 65 13 27 14 50 34 20 Regions Visited 15 Branch Regions 5 Pre-discovered Areas 1 | . . . . . . . . . 1 . . . . . . Known Exits Taken 4 | . . . . . 1 1 . . . . 1 . . 1 . Unknown Exits Taken 10 | 1 1 1 1 1 . . . 1 1 1 . 1 1 . . Scrap Searched 6 | . . . . 1 . . . . 5 . . . . . . Spaces Dug . | . . . . . . . . . . . . . . . . Terrain Destroyed 4 | . . . . . 2 . . . . . 1 . . . 1 Melee . | . . . . . . . . . . . . . . . . Projectile 2 | . . . . . . . . . . . 1 . . . 1 AOE 2 | . . . . . 2 . . . . . . . . . . Terrain Rammed . | . . . . . . . . . . . . . . . . Walls Destroyed . | . . . . . . . . . . . . . . . . Machines Disabled . | . . . . . . . . . . . . . . . . Actions | -11 -10 -10 -9 -9 -8 -7 -7 -6 -6 -6 -5 -4 -4 -3 -2 --------- Run | Yrd Mat Min Mat Min Mat Fac DSF Fac Low Low Fac Fac Ext Res Res Total 6309 | 25 329 33 897 63 383 102 311 270 521 75 574 448 955 768 555 Wait 944 | . 27 . 485 . 39 . 30 3 14 4 27 13 162 125 15 Move 4932 | 22 241 30 362 62 321 94 196 259 486 70 508 419 765 610 487 Hop 103 | . . 1 10 1 8 . . 5 . . 11 . 22 23 22 Pick Up 24 | . 8 . 6 . 2 . . 2 1 . 1 2 1 . 1 Fast Attach 58 | 3 5 . 2 . 2 1 18 1 1 . 9 9 . 1 6 Attach 28 | . 3 2 4 . 3 2 2 . 1 . . 4 . 2 5 Detach 14 | . 2 . 2 . 1 3 . . . . 1 1 . . 4 Swap 26 | . 2 . 4 . 1 . 9 . . . . . 3 4 3 Drop 36 | . 4 . 3 . 3 2 12 . . . 2 . 2 3 5 Fire 95 | . 36 . 19 . 3 . 25 . . . 5 . . . 7 Melee 8 | . . . . . . . . . 8 . . . . . . Ram 1 | . 1 . . . . . . . . . . . . . . Kick . | . . . . . . . . . . . . . . . . Crush 18 | . . . . . . . 18 . . . . . . . . Escape Stasis . | . . . . . . . . . . . . . . . . Rewire 22 | . . . . . . . 1 . 10 1 10 . . . . Trap . | . . . . . . . . . . . . . . . . Miscellaneous . | . . . . . . . . . . . . . . . . Route ------- -11/Scrapyard -10/Materials -10/Mines -9/Materials -9/Mines -8/Materials (discovered 3 exits: *Fac x3) -7/Factory -7/DSF -6/Factory -6/Lower Caves -6/Lower Caves -5/Factory (discovered 3 exits: *Fac x2 / Upp) -4/Factory -4/Extension -3/Research -2/Research (discovered 2 exits: Tes x2) History --------- Turn | Location | Event 11 | -11/Scrapyard | Discovered new exit (range 14) 25 | -11/Scrapyard | Entered Materials 97 | -10/Materials | Discovered new exit (range 16) 280 | -10/Materials | Core integrity fell below 50% 303 | -10/Materials | Build established: Mutant 353 | -10/Materials | Entered Mines 354 | -10/Mines | Assembled infested the area 356 | -10/Mines | Assisted by bots powering up and referring to "LRC-V3" 363 | -10/Mines | Discovered new exit (range 10) 364 | -10/Mines | Core integrity fell below 20% 367 | -10/Mines | Entered Materials 367 | -9/Materials | Evolved 2 slots: Propulsion x2 391 | -9/Materials | Lost 3 allies 397 | -9/Materials | Lost 4 parts (1p2n1w) 660 | -9/Materials | Build established: Sprinter 1019 | -9/Materials | Discovered new exit (range 15) 1023 | -9/Materials | Entered Mines 1033 | -9/Mines | Learned location of 2 exits from Materials 1039 | -9/Mines | Discovered new exit (range 5) 1040 | -9/Mines | Entered Materials 1040 | -8/Materials | Evolved 2 slots: Propulsion x2 1041 | -8/Materials | Identified exit to Factory 1181 | -8/Materials | Discovered exit to Factory (range 15) 1189 | -8/Materials | Entered Factory 1189 | -7/Factory | Evolved 2 slots: Power x1, Propulsion x1 1209 | -7/Factory | Lost 8 parts (6n1u1w) 1243 | -7/Factory | Identified exit to DSF 1243 | -7/Factory | Entered DSF 1287 | -7/DSF | Discovered new exit (range 15) 1305 | -7/DSF | Additional patrols routed to DSF 1404 | -7/DSF | Lost 3 parts (2p1n) 1499 | -7/DSF | Build established: Mutant 1554 | -7/DSF | Core integrity fell below 50% 1565 | -7/DSF | Sterilization system engaged 1585 | -7/DSF | Ambient heat levels rising (+10) 1596 | -7/DSF | Lost 10 parts (2p4n2u2w) 1600 | -7/DSF | Ambient heat levels rising (+10) 1615 | -7/DSF | Ambient heat levels rising (+10) 1615 | -7/DSF | Entered Factory 1615 | -6/Factory | Evolved 2 slots: Propulsion x2 1728 | -6/Factory | Discovered new exit (range 15) 1734 | -6/Factory | Entered Lower Caves 1742 | -6/Lower Caves | Met a Warlord Commander 1743 | -6/Lower Caves | Learned location of Warlord (-4) 1744 | -6/Lower Caves | Warlord Commander delivered Encrypted Comm Array 1746 | -6/Lower Caves | Found Encrypted Comm Array 1755 | -6/Lower Caves | Learned location of 1 exit from Factory 1759 | -6/Lower Caves | Learned location of 1 exit from Factory 1926 | -6/Lower Caves | Attacked by a delusional Derelict stockpiling Unaware 1968 | -6/Lower Caves | Discovered new exit (range 5) 1979 | -6/Lower Caves | Entered another Lower Caves area 1979 | -6/Lower Caves | Accompanied by 3 allies 2007 | -6/Lower Caves | Discovered new exit (range 5) 2020 | -6/Lower Caves | Entered Factory 2020 | -5/Factory | Accompanied by 3 allies 2020 | -5/Factory | Evolved 2 slots: Propulsion x2 2021 | -5/Factory | Identified exit to Upper Caves 2021 | -5/Factory | Identified exit to Factory 2037 | -5/Factory | Joined by Warlord Dakka squad 2087 | -5/Factory | Lost 4 allies 2100 | -5/Factory | Joined by Warlord Dakka squad 2122 | -5/Factory | Spotted B-75 Beast 2151 | -5/Factory | Lost 5 allies 2217 | -5/Factory | Lost 4 parts (4n) 2233 | -5/Factory | Core integrity fell below 50% 2245 | -5/Factory | Core integrity fell below 20% 2259 | -5/Factory | Discovered exit to Factory (range 11) 2282 | -5/Factory | Entered another Factory area 2282 | -4/Factory | Evolved 2 slots: Propulsion x2 2452 | -4/Factory | Discovered new exit (range 16) 2455 | -4/Factory | Entered Extension 2513 | -4/Extension | Rescued a captive Derelict 2568 | -4/Extension | Rescued A7 2587 | -4/Extension | Rescued a captive Derelict 2590 | -4/Extension | Rescued a captive Derelict 2600 | -4/Extension | Rescued a captive Derelict 2601 | -4/Extension | Rescued a captive Derelict 2618 | -4/Extension | Rescued a captive Derelict 2653 | -4/Extension | Spotted B-86 Titan 2705 | -4/Extension | Search patrols dispatched 2809 | -4/Extension | Spotted B-86 Titan 2812 | -4/Extension | Discovered new exit (range 3) 2813 | -4/Extension | Entered Research 2813 | -3/Research | Evolved 2 slots: Propulsion x1, Utility x1 2858 | -3/Research | Build established: Sprinter 3063 | -3/Research | Search patrols dispatched 3080 | -3/Research | Spotted B-86 Titan 3093 | -3/Research | Discovered new exit (range 15) 3098 | -3/Research | Identified exit to Research 3098 | -3/Research | Entered another Research area 3098 | -2/Research | Evolved 2 slots: Power x1, Propulsion x1 3117 | -2/Research | Lost 3 parts (2n1w) 3138 | -2/Research | Spotted B-90 Cyclops 3215 | -2/Research | Lost 6 parts (5n1u) 3262 | -2/Research | Core integrity fell below 50% 3289 | -2/Research | Core integrity fell below 20% 3332 | -2/Research | Lost 6 parts (3p3n) 3348 | -2/Research | Search patrols dispatched 3349 | -2/Research | Identified exit to Testing 3363 | -2/Research | Destroyed by G-73 Enforcer with Phase Gun Last Messages --------------- 03308_ Triggered Segregator Trap. 03308_ Arcs of energy rise from the floor. 03308_ Adv. Transmission Jammer blown off. 03308_ Xenon Bombardment Thruster blown off. 03309_ Acquired Xenon Bombardment Thruster. 03312_ U-05 Engineer lays Concrete. 03337_ K-01 Serf cleans the Terminal. 03341_ K-01 Serf cleans the DSF Access. 03341_ Connecting with DSF Access... 03348_ ALERT: Heightened foreign activity detected, multiple search patrols dispatched. 03349_ Connecting with Terminal... >>Access(Branch) Found 2 branch access points: (18,51) Testing (96,28) Testing Map updated. 03349_ ALERT: Suspicious activity at Terminal R014. Dispatching Investigation squad. 03358_ Xenon Bombardment Thruster destroyed. Map ----- +----------------------------------------------------+ | ?????????????????????????????????????????????????? | | ?????????????????????????????????????????????????? | | ?????????????????????????????????????????????????? | | ?????????????????????????????????????????????????? | | ?????????????????????????????????????????????????? | | ?????????????????????????????????????????????????? | | ?????????????????????????????????????????????????? | | ?????????????????????????????????????????????????? | | ?????????????????????????????????????????????????? | | ?????????????????????????????????????????????????? | | ?????????????????????????????????????????????????? | | ?????????????????????????????????????????????????? | | ?????????????????????????????????????????????????? | | ?????????????????????????????????????????????????? | | ?????????????????????????????????????????????????? | | ?????????????????????????????????????????????????? | | ?????????????????????????????????????????????????? | | ?????????????????????????????????????????????????? | | ????????? ??????????##?????????????????????????? | | ????????? #????????# ?????????????????????????? | | ????????? #????????# ?????????????????????????? | | ????????# #????????# ????????????#########????? | | ????????# #????????# #???????????# #????? | | ######### #????????# #???????????# #????? | | # ########## ############# * !!!#????? | | # gg @ + !!!#????? | | # g ########## !! #????? | | # #????????#########????? | | # g """ #?????????????????????? | | ? # """ #?????????????????????? | | ??? # """ #?????????????????????? | | #####/### " " """ #?????????????????????? | | ""G"" """ +?????????????????????? | | #?????????????????????? | | #?????????????????????? | | #?????????????????????? | | # T#########+######" "######?????????????????????? | | ####?????? ???#"T"#??????????????????????????? | | ????????# ?#"""#??????????????????????????? | | ????????# ######??????????????????????????? | | ????????# #???????????????????????????????? | | ????????# """ #???????????????????????????????? | | ????????# """ #???????????????????????????????? | | ????????# """ #???????????????????????????????? | | ????????# ! #???????????????????????????????? | | ????????# ? #???????????????????????????????? | | ????????####????##???????????????????????????????? | | ?????????????????????????????????????????????????? | | ?????????????????????????????????????????????????? | | ?????????????????????????????????????????????????? | +----------------------------------------------------+ Best States ------------- Heat Dissipation 68 Energy Generation 65 Energy Capacity 850 Matter Stores 300 Matter Capacity 300 Sight Range 16 Terrain Scan Density 10 Jamming Range 16 Armor Coverage 150 Resistance: TH 25 Evasion (%) 65 Recoil Reduction 7 Item Schematics ----------------- None Robot Schematics ------------------ None Fabricated ------------ Nothing Alien Tech Used ----------------- None Achievements -------------- Streaker Challenges ------------ None Game ------ Seed BlastBoreGuard Manual? 0 Play Time 01:08:44 Cumulative 48.5 hours Start 2024.11.18 @ 16:57:43 End 2024.11.18 @ 18:23:58 Sessions 1 Manual Loads 0 Difficulty Rogue Special Mode None Game No. 88 Rogue 88 Adventurer 0 Explorer 0 Win Type - Total 0 Types 0/0/0/0/0/0/0/0/0 Lore% 15 Gallery% 34 Achievement% 32 Wizard Run 0 Options --------- Layout 0 ASCII 0 Keyboard 1 Movement Numpad Keybinds 0 Fullscreen 1 Font 18/SmallcapsGlow Map View 76x50 Zoom Use 0% Tactical HUD 1 Map Filters NONE Filters NONE Steam 1 RUN: 7a5c2947-732d-4930-a2cd-504ea4cfb445